fUSD/lending_fUSD_20260421
["ID","MTS","AMOUNT","RATE_DAILY","PERIOD"]
[420930623,1776736289805,-500.0,0.00027671,2]
[420930624,1776736289815,-500.0,0.00027671,2]
[420930625,1776736289824,-1000.0,0.00027671,2]
[420930626,1776736289834,-300.0,0.00027671,2]
[420930627,1776736289844,-1000.0,0.00027671,2]
[420930628,1776736289853,-2060.62,0.00027671,2]
[420930629,1776736289863,-963.94,0.00027671,2]
[420930630,1776736289873,-544.2937,0.00027671,2]
[420930631,1776736289882,-1190.0,0.00027671,15]
[420930632,1776736289892,-350.0,0.00027687,2]
[420930633,1776736289902,-200.0,0.000277,10]
[420930634,1776736289911,-2400.0,0.00027762,21]
[420930635,1776736289921,-1200.0,0.00027762,21]
[420930636,1776736289930,-200.0,0.000278,10]
[420930637,1776736289940,-168.0,0.00027839,2]
[420930638,1776736289949,-703.94736317,0.00027845,2]
[420930639,1776736289959,-150.0,0.000279,2]
[420930640,1776736289969,-200.04,0.000279,10]
[420930641,1776736289979,-200.0,0.000279,10]
[420930642,1776736289988,-300.0,0.00027944,10]
[420930643,1776736289998,-300.0,0.00027944,10]
[420930644,1776736290009,-300.0,0.00027944,10]
[420930645,1776736290019,-428.026492,0.00027944,10]
[420930646,1776736290028,-4273.71407892,0.00027944,2]
[420930647,1776736290038,-4273.71407892,0.00027944,2]
[420930648,1776736290048,-523.27860644,0.00027945,2]
[420930649,1776736290057,-500.0,0.00027945,2]
[420930650,1776736290066,-608.39430341,0.00027945,2]
[420930651,1776736290076,-500.0,0.00027945,2]
[420930652,1776736290086,-500.0,0.00027945,2]
[420930653,1776736290096,-500.0,0.00027945,2]
[420930654,1776736290106,-500.0,0.00027945,2]
[420930655,1776736290116,-500.0,0.00027945,2]
[420930656,1776736290126,-234.61920146,0.00027945,2]
[420930657,1776736290135,-177.76854189,0.00027945,2]
[420930658,1776736290145,-500.0,0.00027945,2]
[420930659,1776736290155,-500.0,0.00027945,2]
[420930660,1776736290164,-500.0,0.00027945,2]
[420930661,1776736290174,-500.0,0.00027945,2]
[420930662,1776736290184,-500.0,0.00027945,2]
[420930663,1776736290194,-578.07330802,0.00027945,2]
[420930664,1776736290203,-500.0,0.00027945,2]
[420930665,1776736290213,-500.0,0.00027945,2]
[420930666,1776736290222,-500.0,0.00027945,2]
[420930667,1776736290232,-500.0,0.00027945,2]
[420930668,1776736290241,-500.0,0.00027945,2]
[420930669,1776736290251,-500.0,0.00027945,2]
[420930670,1776736290260,-500.0,0.00027945,2]
[420930671,1776736290269,-500.0,0.00027945,2]
[420930672,1776736290279,-500.0,0.00027945,2]
[420930673,1776736290288,-523.93763087,0.00027945,2]
[420930674,1776736290298,-500.0,0.00027945,2]
[420930675,1776736290307,-500.0,0.00027945,2]
[420930676,1776736290316,-500.0,0.00027945,2]
[420930677,1776736290326,-500.0,0.00027945,2]
[420930678,1776736290335,-500.0,0.00027945,2]
[420930679,1776736290344,-583.08460945,0.00027945,2]
[420930680,1776736290353,-500.0,0.00027945,2]
[420930681,1776736290362,-500.0,0.00027945,2]
[420930682,1776736290372,-500.0,0.00027945,2]
[420930683,1776736290381,-500.0,0.00027945,2]
[420930684,1776736290391,-500.0,0.00027945,2]
[420930685,1776736290401,-500.0,0.00027945,2]
[420930686,1776736290411,-500.0,0.00027945,2]
[420930687,1776736290420,-500.0,0.00027945,2]
[420930688,1776736290429,-500.0,0.00027945,2]
[420930689,1776736290439,-500.0,0.00027945,2]
[420930690,1776736290449,-500.0,0.00027945,2]
[420930691,1776736290459,-500.0,0.00027945,2]
[420930692,1776736290469,-500.0,0.00027945,2]
[420930693,1776736290479,-500.0,0.00027945,2]
[420930694,1776736290488,-500.0,0.00027945,2]
[420930695,1776736290498,-500.0,0.00027945,2]
[420930696,1776736290506,-500.0,0.00027945,2]
[420930697,1776736290516,-500.0,0.00027945,2]
[420930698,1776736290526,-500.0,0.00027945,2]
[420930699,1776736290535,-500.0,0.00027945,2]
[420930700,1776736290546,-500.0,0.00027945,2]
[420930701,1776736290555,-500.0,0.00027945,2]
[420930702,1776736290565,-500.0,0.00027945,2]
[420930703,1776736290575,-562.13235247,0.00027945,2]
[420930704,1776736290585,-500.0,0.00027945,2]
[420930705,1776736290596,-500.0,0.00027945,2]
[420930706,1776736290605,-500.0,0.00027945,2]
[420930707,1776736290615,-500.0,0.00027945,2]
[420930708,1776736290625,-500.0,0.00027945,2]
[420930709,1776736290635,-500.0,0.00027945,2]
[420930710,1776736290644,-500.0,0.00027945,2]
[420930711,1776736290655,-500.0,0.00027945,2]
[420930712,1776736290665,-500.0,0.00027945,2]
[420930713,1776736290675,-500.0,0.00027945,2]
[420930714,1776736290684,-500.0,0.00027945,2]
[420930715,1776736290694,-500.0,0.00027945,2]
[420930716,1776736290704,-500.0,0.00027945,2]
[420930717,1776736290714,-500.0,0.00027945,2]
[420930718,1776736290724,-500.0,0.00027945,2]
[420930719,1776736290733,-500.0,0.00027945,2]
[420930720,1776736290743,-500.0,0.00027945,2]
[420930721,1776736290754,-2119.13,0.00027945,2]
[420930722,1776736290764,-500.0,0.00027945,2]
[420930723,1776736290774,-500.0,0.00027945,2]
[420930724,1776736290784,-500.0,0.00027945,2]
[420930725,1776736290794,-500.0,0.00027945,2]
[420930726,1776736290804,-1170.31,0.00027945,2]
[420930727,1776736290813,-500.0,0.00027945,2]
[420930728,1776736290823,-500.0,0.00027945,2]
[420930729,1776736291264,-500.0,0.00027945,2]
[420930730,1776736291274,-1637.37,0.00027945,2]
[420930731,1776736291284,-500.0,0.00027945,2]
[420930732,1776736291293,-774.1,0.00027945,2]
[420930733,1776736291303,-500.0,0.00027945,2]
[420930734,1776736291312,-500.0,0.00027945,2]
[420930735,1776736291321,-500.0,0.00027945,2]
[420930736,1776736291330,-500.0,0.00027945,2]
[420930737,1776736291340,-500.0,0.00027945,2]
[420930738,1776736291349,-1733.36,0.00027945,2]
[420930739,1776736291359,-500.0,0.00027945,2]
[420930740,1776736291369,-500.0,0.00027945,2]
[420930741,1776736291378,-3651.97,0.00027945,2]
[420930742,1776736291387,-500.0,0.00027945,2]
[420930743,1776736291396,-500.0,0.00027945,2]
[420930744,1776736291406,-559.18,0.00027945,2]
[420930745,1776736291415,-500.0,0.00027945,2]
[420930746,1776736291424,-500.0,0.00027945,2]
[420930747,1776736291434,-500.0,0.00027945,2]
[420930748,1776736291444,-500.0,0.00027945,2]
[420930749,1776736291454,-500.0,0.00027945,2]
[420930750,1776736291464,-508.28,0.00027945,2]
[420930751,1776736291474,-500.0,0.00027945,2]
[420930752,1776736291483,-500.0,0.00027945,2]
[420930753,1776736291493,-843.04,0.00027945,2]
[420930754,1776736291502,-1323.73,0.00027945,2]
[420930755,1776736291512,-500.0,0.00027945,2]
[420930756,1776736291522,-500.0,0.00027945,2]
[420930757,1776736291531,-689.4,0.00027945,2]
[420930758,1776736291541,-500.0,0.00027945,2]
[420930759,1776736291551,-500.0,0.00027945,2]
[420930760,1776736291560,-938.65,0.00027945,2]
[420930761,1776736291570,-500.0,0.00027945,2]
[420930762,1776736291580,-500.0,0.00027945,2]
[420930763,1776736291589,-500.0,0.00027945,2]
[420930764,1776736291599,-344.34952233,0.00027945,2]
[420930765,1776736291608,-500.0,0.00027945,2]
[420930766,1776736291619,-500.0,0.00027945,2]
[420930767,1776736291628,-1869.45,0.00027945,2]
[420930768,1776736291638,-2743.38,0.00027945,2]
[420930769,1776736291648,-500.0,0.00027945,2]
[420930770,1776736291658,-500.0,0.00027945,2]
[420930771,1776736291667,-500.0,0.00027945,2]
[420930772,1776736291677,-500.0,0.00027945,2]
[420930773,1776736291687,-500.0,0.00027945,2]
[420930774,1776736291697,-1710.35,0.00027945,2]
[420930775,1776736291707,-1821.37,0.00027945,2]
[420930776,1776736291717,-1387.27,0.00027945,2]
[420930777,1776736291726,-500.0,0.00027945,2]
[420930778,1776736291735,-946.81,0.00027945,2]
[420930779,1776736291744,-672.41,0.00027945,2]
[420930780,1776736291752,-644.39,0.00027945,2]
[420930781,1776736291761,-500.0,0.00027945,2]
[420930782,1776736291770,-2171.55,0.00027945,2]
[420930783,1776736291780,-500.0,0.00027945,2]
[420930784,1776736291789,-500.0,0.00027945,2]
[420930785,1776736291799,-500.0,0.00027945,2]
[420930786,1776736291808,-500.0,0.00027945,2]
[420930787,1776736291822,-811.12,0.00027945,2]
[420930788,1776736291831,-500.0,0.00027945,2]
[420930789,1776736291841,-500.0,0.00027945,2]
[420930790,1776736291850,-500.0,0.00027945,2]
[420930791,1776736291860,-220.25794391,0.00027945,2]
[420930792,1776736291869,-1248.45,0.00027945,2]
[420930793,1776736291879,-500.0,0.00027945,2]
[420930794,1776736291889,-1123.76,0.00027945,2]
[420930795,1776736291898,-500.0,0.00027945,2]
[420930796,1776736291907,-500.0,0.00027945,2]
[420930797,1776736291917,-500.0,0.00027945,2]
[420930798,1776736291926,-500.0,0.00027945,2]
[420930799,1776736291935,-500.0,0.00027945,2]
[420930800,1776736291945,-500.0,0.00027945,2]
[420930801,1776736291955,-555.79,0.00027945,2]
[420930802,1776736291964,-532.63,0.00027945,2]
[420930803,1776736291974,-721.13,0.00027945,2]
[420930804,1776736291983,-907.06,0.00027945,2]
[420930805,1776736291993,-500.0,0.00027945,2]
[420930806,1776736292002,-500.0,0.00027945,2]
[420930807,1776736292012,-654.35,0.00027945,2]
[420930808,1776736292022,-500.0,0.00027945,2]
[420930809,1776736292031,-500.0,0.00027945,2]
[420930810,1776736292040,-500.0,0.00027945,2]
[420930811,1776736292050,-891.94,0.00027945,2]
[420930812,1776736292059,-1938.0,0.00027945,2]
[420930813,1776736292068,-500.0,0.00027945,2]
[420930814,1776736292078,-1006.49,0.00027945,2]
[420930815,1776736292087,-500.0,0.00027945,2]
[420930816,1776736292097,-500.0,0.00027945,2]
[420930817,1776736292106,-2766.4,0.00027945,2]
[420930818,1776736292116,-500.0,0.00027945,2]
[420930819,1776736292125,-214.44223171,0.00027945,2]
[420930820,1776736292135,-1639.19,0.00027945,2]
[420930821,1776736292144,-2465.18,0.00027945,2]
[420930822,1776736292154,-500.0,0.00027945,2]
[420930823,1776736292164,-860.74,0.00027945,2]
[420930824,1776736292174,-859.96,0.00027945,2]
[420930825,1776736292184,-500.0,0.00027945,2]
[420930826,1776736292194,-2763.35,0.00027945,2]
[420930827,1776736292203,-500.0,0.00027945,2]
[420930828,1776736292213,-3253.02,0.00027945,2]
[420930829,1776736292223,-1121.4,0.00027945,2]
[420930830,1776736292233,-1344.8,0.00027945,2]
[420930831,1776736292243,-500.0,0.00027945,2]
[420930832,1776736292252,-500.0,0.00027945,2]
[420930833,1776736292262,-500.0,0.00027945,2]
[420930834,1776736292272,-500.0,0.00027945,2]
[420930835,1776736292282,-500.0,0.00027945,2]
[420930836,1776736292292,-500.0,0.00027945,2]
[420930837,1776736292301,-500.0,0.00027945,2]
[420930838,1776736292311,-500.0,0.00027945,2]
[420930839,1776736292321,-895.36,0.00027945,2]
[420930840,1776736292331,-864.12,0.00027945,2]
[420930841,1776736292340,-500.0,0.00027945,2]
[420930842,1776736292349,-653.54,0.00027945,2]
[420930843,1776736292358,-500.0,0.00027945,2]
[420930844,1776736292368,-500.0,0.00027945,2]
[420930845,1776736292378,-500.0,0.00027945,2]
[420930846,1776736292387,-1747.22,0.00027945,2]
[420930847,1776736292397,-816.91,0.00027945,2]
[420930848,1776736292406,-500.0,0.00027945,2]
[420930849,1776736292416,-500.0,0.00027945,2]
[420930850,1776736292425,-500.0,0.00027945,2]
[420930851,1776736292434,-500.0,0.00027945,2]
[420930852,1776736292443,-1953.11,0.00027945,2]
[420930853,1776736292453,-1187.43,0.00027945,2]
[420930854,1776736292462,-500.0,0.00027945,2]
[420930855,1776736292472,-2825.01,0.00027945,2]
[420930856,1776736292481,-770.51,0.00027945,2]
[420930857,1776736292491,-500.0,0.00027945,2]
[420930858,1776736292501,-505.16636046,0.00027945,2]
[420930859,1776736292511,-500.0,0.00027945,2]
[420930860,1776736292520,-500.0,0.00027945,2]
[420930861,1776736292529,-1208.33,0.00027945,2]
[420930862,1776736292539,-500.0,0.00027945,2]
[420930863,1776736292549,-500.0,0.00027945,2]
[420930864,1776736292558,-500.0,0.00027945,2]
[420930865,1776736292568,-2964.12,0.00027945,2]
[420930866,1776736292578,-946.67,0.00027945,2]
[420930867,1776736292588,-710.46,0.00027945,2]
[420930868,1776736292598,-500.0,0.00027945,2]
[420930869,1776736292607,-1456.96,0.00027945,2]
[420930870,1776736292616,-500.0,0.00027945,2]
[420930871,1776736292625,-500.0,0.00027945,2]
[420930872,1776736292636,-500.0,0.00027945,2]
[420930873,1776736292646,-576.29,0.00027945,2]
[420930874,1776736292655,-500.0,0.00027945,2]
[420930875,1776736292664,-500.0,0.00027945,2]
[420930876,1776736292674,-500.0,0.00027945,2]
[420930877,1776736292683,-1300.61,0.00027945,2]
[420930878,1776736292692,-500.0,0.00027945,2]
[420930879,1776736292701,-1668.42,0.00027945,2]
[420930880,1776736292710,-500.0,0.00027945,2]
[420930881,1776736292720,-977.81,0.00027945,2]
[420930882,1776736292729,-500.0,0.00027945,2]
[420930883,1776736292739,-500.0,0.00027945,2]
[420930884,1776736292748,-275.69390789,0.00027945,2]
[420930885,1776736292758,-1282.13,0.00027945,2]
[420930886,1776736292768,-500.0,0.00027945,2]
[420930887,1776736292778,-983.47,0.00027945,2]
[420930888,1776736292787,-999.97,0.00027945,2]
[420930889,1776736292796,-500.0,0.00027945,2]
[420930890,1776736292805,-2472.72,0.00027945,2]
[420930891,1776736292815,-526.01877066,0.00027945,2]
[420930892,1776736292824,-500.0,0.00027945,2]
[420930893,1776736292833,-573.19,0.00027945,2]
[420930894,1776736292843,-1418.53,0.00027945,2]
[420930895,1776736292852,-500.0,0.00027945,2]
[420930896,1776736292861,-777.42,0.00027945,2]
[420930897,1776736292870,-2604.88,0.00027945,2]
[420930898,1776736292879,-500.0,0.00027945,2]
[420930899,1776736292889,-1253.96,0.00027945,2]
[420930900,1776736292898,-694.07,0.00027945,2]
[420930901,1776736292908,-500.0,0.00027945,2]
[420930902,1776736292917,-568.22928286,0.00027945,2]
[420930903,1776736292927,-813.14,0.00027945,2]
[420930904,1776736292936,-2143.64,0.00027945,2]
[420930905,1776736292945,-500.0,0.00027945,2]
[420930906,1776736292955,-579.72,0.00027945,2]
[420930907,1776736292964,-2038.48,0.00027945,2]
[420930908,1776736292973,-500.0,0.00027945,2]
[420930909,1776736292983,-2643.97,0.00027945,2]
[420930910,1776736292993,-500.0,0.00027945,2]
[420930911,1776736293003,-500.0,0.00027945,2]
[420930912,1776736293013,-500.0,0.00027945,2]
[420930913,1776736293022,-500.0,0.00027945,2]
[420930914,1776736293032,-500.0,0.00027945,2]
[420930915,1776736293041,-509.43,0.00027945,2]
[420930916,1776736293051,-500.0,0.00027945,2]
[420930917,1776736293060,-500.0,0.00027945,2]
[420930918,1776736293070,-1223.03,0.00027945,2]
[420930919,1776736293079,-653.28,0.00027945,2]
[420930920,1776736293088,-1268.41,0.00027945,2]
[420930921,1776736293098,-563.74,0.00027945,2]
[420930922,1776736293107,-500.0,0.00027945,2]
[420930923,1776736293117,-766.56,0.00027945,2]
[420930924,1776736293126,-500.0,0.00027945,2]
[420930925,1776736293135,-2327.8,0.00027945,2]
[420930926,1776736293144,-924.25,0.00027945,2]
[420930927,1776736293154,-1096.23,0.00027945,2]
[420930928,1776736293163,-226.27104971,0.00027945,2]
[420930929,1776736293173,-1433.35,0.00027945,2]
[420930930,1776736293182,-844.68,0.00027945,2]
[420930931,1776736293192,-500.0,0.00027945,2]
[420930932,1776736293201,-500.0,0.00027945,2]
[420930933,1776736293216,-3321.91,0.00027945,2]
[420930934,1776736293225,-500.0,0.00027945,2]
[420930935,1776736293235,-840.34,0.00027945,2]
[420930936,1776736293244,-500.0,0.00027945,2]
[420930937,1776736293254,-500.0,0.00027945,2]
[420930938,1776736293264,-1581.0,0.00027945,2]
[420930939,1776736293273,-500.0,0.00027945,2]
[420930940,1776736293283,-500.0,0.00027945,2]
[420930941,1776736293293,-562.07,0.00027945,2]
[420930942,1776736293303,-500.0,0.00027945,2]
[420930943,1776736293312,-500.0,0.00027945,2]
[420930944,1776736293322,-500.0,0.00027945,2]
[420930945,1776736293331,-1601.4,0.00027945,2]
[420930946,1776736293341,-552.1,0.00027945,2]
[420930947,1776736293351,-509.00077447,0.00027945,2]
[420930948,1776736293360,-500.0,0.00027945,2]
[420930949,1776736293370,-2647.88,0.00027945,2]
[420930950,1776736293379,-500.0,0.00027945,2]
[420930951,1776736293388,-500.0,0.00027945,2]
[420930952,1776736293399,-1448.68,0.00027945,2]
[420930953,1776736293408,-547.06,0.00027945,2]
[420930954,1776736293418,-500.0,0.00027945,2]
[420930955,1776736293428,-500.0,0.00027945,2]
[420930956,1776736293438,-500.0,0.00027945,2]
[420930957,1776736293449,-2999.54,0.00027945,2]
[420930958,1776736293458,-500.0,0.00027945,2]
[420930959,1776736293468,-2969.78,0.00027945,2]
[420930960,1776736293477,-500.0,0.00027945,2]
[420930961,1776736293488,-879.15,0.00027945,2]
[420930962,1776736293497,-500.0,0.00027945,2]
[420930963,1776736293506,-500.0,0.00027945,2]
[420930964,1776736293516,-1769.55,0.00027945,2]
[420930965,1776736293526,-500.0,0.00027945,2]
[420930966,1776736293536,-500.0,0.00027945,2]
[420930967,1776736293546,-373.64852869,0.00027945,2]
[420930968,1776736293556,-508.26,0.00027945,2]
[420930969,1776736293753,-500.0,0.00027945,2]
[420930970,1776736293763,-500.0,0.00027945,2]
[420930971,1776736293773,-500.0,0.00027945,2]
[420930972,1776736293782,-500.0,0.00027945,2]
[420930973,1776736293792,-500.0,0.00027945,2]
[420930974,1776736293802,-563.55,0.00027945,2]
[420930975,1776736293811,-500.0,0.00027945,2]
[420930976,1776736293820,-649.14401834,0.00027945,2]
[420930977,1776736293829,-500.0,0.00027945,2]
[420930978,1776736293838,-536.27,0.00027945,2]
[420930979,1776736293847,-500.0,0.00027945,2]
[420930980,1776736293856,-500.0,0.00027945,2]
[420930981,1776736293865,-500.0,0.00027945,2]
[420930982,1776736293875,-969.06,0.00027945,2]
[420930983,1776736293884,-1077.46,0.00027945,2]
[420930984,1776736293892,-500.0,0.00027945,2]
[420930985,1776736293902,-500.0,0.00027945,2]
[420930986,1776736293911,-500.0,0.00027945,2]
[420930987,1776736293920,-1419.55,0.00027945,2]
[420930988,1776736293929,-1041.12,0.00027945,2]
[420930989,1776736293938,-813.38,0.00027945,2]
[420930990,1776736293947,-702.9,0.00027945,2]
[420930991,1776736293957,-500.0,0.00027945,2]
[420930992,1776736293967,-2390.82,0.00027945,2]
[420930993,1776736293976,-832.19,0.00027945,2]
[420930994,1776736293984,-500.0,0.00027945,2]
[420930995,1776736293994,-804.1,0.00027945,2]
[420930996,1776736294003,-2397.94,0.00027945,2]
[420930997,1776736294012,-500.0,0.00027945,2]
[420930998,1776736294021,-1945.28,0.00027945,2]
[420930999,1776736294031,-500.0,0.00027945,2]
[420931000,1776736294040,-646.2,0.00027945,2]
[420931001,1776736294049,-518.24775518,0.00027945,2]
[420931002,1776736294058,-1077.72,0.00027945,2]
[420931003,1776736294067,-500.0,0.00027945,2]
[420931004,1776736294076,-500.0,0.00027945,2]
[420931005,1776736294085,-1075.72,0.00027945,2]
[420931006,1776736294094,-500.0,0.00027945,2]
[420931007,1776736294104,-530.4482639,0.00027945,2]
[420931008,1776736294113,-500.0,0.00027945,2]
[420931009,1776736294123,-826.79,0.00027945,2]
[420931010,1776736294132,-3707.29,0.00027945,2]
[420931011,1776736294141,-323.17471785,0.00027945,2]
[420931012,1776736294150,-500.0,0.00027945,2]
[420931013,1776736294159,-500.0,0.00027945,2]
[420931014,1776736294169,-1074.36,0.00027945,2]
[420931015,1776736294179,-531.77,0.00027945,2]
[420931016,1776736294187,-500.0,0.00027945,2]
[420931017,1776736294197,-1039.87,0.00027945,2]
[420931018,1776736294207,-500.0,0.00027945,2]
[420931019,1776736294216,-500.0,0.00027945,2]
[420931020,1776736294226,-500.0,0.00027945,2]
[420931021,1776736294236,-612.18678735,0.00027945,2]
[420931022,1776736294245,-500.0,0.00027945,2]
[420931023,1776736294254,-564.36978808,0.00027945,2]
[420931024,1776736294263,-1211.86,0.00027945,2]
[420931025,1776736294273,-1013.42,0.00027945,2]
[420931026,1776736294283,-502.34,0.00027945,2]
[420931027,1776736294292,-500.0,0.00027945,2]
[420931028,1776736294301,-1541.02,0.00027945,2]
[420931029,1776736294311,-500.0,0.00027945,2]
[420931030,1776736294320,-693.87,0.00027945,2]
[420931031,1776736294329,-992.28,0.00027945,2]
[420931032,1776736294339,-515.46,0.00027945,2]
[420931033,1776736294348,-500.0,0.00027945,2]
[420931034,1776736294356,-936.53,0.00027945,2]
[420931035,1776736294365,-500.0,0.00027945,2]
[420931036,1776736294375,-500.0,0.00027945,2]
[420931037,1776736294384,-683.48,0.00027945,2]
[420931038,1776736294393,-500.0,0.00027945,2]
[420931039,1776736294402,-570.07,0.00027945,2]
[420931040,1776736294411,-2489.59,0.00027945,2]
[420931041,1776736294420,-500.0,0.00027945,2]
[420931042,1776736294429,-500.0,0.00027945,2]
[420931043,1776736294438,-500.0,0.00027945,2]
[420931044,1776736294447,-894.5,0.00027945,2]
[420931045,1776736294457,-620.63,0.00027945,2]
[420931046,1776736294466,-1110.4,0.00027945,2]
[420931047,1776736294475,-500.0,0.00027945,2]
[420931048,1776736294484,-500.0,0.00027945,2]
[420931049,1776736294493,-500.0,0.00027945,2]
[420931050,1776736294503,-500.0,0.00027945,2]
[420931051,1776736294512,-1011.78,0.00027945,2]
[420931052,1776736294522,-500.0,0.00027945,2]
[420931053,1776736294531,-500.0,0.00027945,2]
[420931054,1776736294541,-2223.94,0.00027945,2]
[420931055,1776736294550,-500.0,0.00027945,2]
[420931056,1776736294559,-500.0,0.00027945,2]
[420931057,1776736294569,-500.0,0.00027945,2]
[420931058,1776736294578,-692.83,0.00027945,2]
[420931059,1776736294587,-500.0,0.00027945,2]
[420931060,1776736294596,-1906.85,0.00027945,2]
[420931061,1776736294606,-500.0,0.00027945,2]
[420931062,1776736294615,-500.0,0.00027945,2]
[420931063,1776736294624,-500.0,0.00027945,2]
[420931064,1776736294634,-882.93,0.00027945,2]
[420931065,1776736294643,-500.0,0.00027945,2]
[420931066,1776736294653,-540.93,0.00027945,2]
[420931067,1776736294662,-500.0,0.00027945,2]
[420931068,1776736294671,-830.62,0.00027945,2]
[420931069,1776736294681,-534.54,0.00027945,2]
[420931070,1776736294691,-2424.63,0.00027945,2]
[420931071,1776736294701,-500.0,0.00027945,2]
[420931072,1776736294711,-500.0,0.00027945,2]
[420931073,1776736294720,-500.0,0.00027945,2]
[420931074,1776736294730,-500.0,0.00027945,2]
[420931075,1776736294739,-666.5,0.00027945,2]
[420931076,1776736294749,-534.84,0.00027945,2]
[420931077,1776736294759,-1138.05,0.00027945,2]
[420931078,1776736294769,-1161.6,0.00027945,2]
[420931079,1776736294778,-500.0,0.00027945,2]
[420931080,1776736294788,-500.0,0.00027945,2]
[420931081,1776736294797,-635.09,0.00027945,2]
[420931082,1776736294807,-500.0,0.00027945,2]
[420931083,1776736294816,-2195.47,0.00027945,2]
[420931084,1776736294826,-1378.22,0.00027945,2]
[420931085,1776736294835,-501.79,0.00027945,2]
[420931086,1776736294844,-617.08493641,0.00027945,2]
[420931087,1776736294854,-500.0,0.00027945,2]
[420931088,1776736294863,-500.0,0.00027945,2]
[420931089,1776736294872,-833.38,0.00027945,2]
[420931090,1776736294882,-500.0,0.00027945,2]
[420931091,1776736294891,-1672.29,0.00027945,2]
[420931092,1776736294901,-500.0,0.00027945,2]
[420931093,1776736294910,-500.0,0.00027945,2]
[420931094,1776736294920,-705.27,0.00027945,2]
[420931095,1776736294930,-1444.44,0.00027945,2]
[420931096,1776736294940,-3193.52,0.00027945,2]
[420931097,1776736294950,-508.12,0.00027945,2]
[420931098,1776736294960,-500.0,0.00027945,2]
[420931099,1776736294970,-500.0,0.00027945,2]
[420931100,1776736294980,-1508.06,0.00027945,2]
[420931101,1776736294990,-550.35,0.00027945,2]
[420931102,1776736294999,-500.0,0.00027945,2]
[420931103,1776736295009,-500.0,0.00027945,2]
[420931104,1776736295018,-1109.81,0.00027945,2]
[420931105,1776736295028,-500.0,0.00027945,2]
[420931106,1776736295038,-500.0,0.00027945,2]
[420931107,1776736295047,-952.01,0.00027945,2]
[420931108,1776736295058,-692.5,0.00027945,2]
[420931109,1776736295068,-500.0,0.00027945,2]
[420931110,1776736295077,-947.69,0.00027945,2]
[420931111,1776736295087,-665.26,0.00027945,2]
[420931112,1776736295097,-530.02850963,0.00027945,2]
[420931113,1776736295106,-1418.43,0.00027945,2]
[420931114,1776736295122,-695.3,0.00027945,2]
[420931115,1776736295131,-907.59,0.00027945,2]
[420931116,1776736295141,-1180.06,0.00027945,2]
[420931117,1776736295150,-747.19,0.00027945,2]
[420931118,1776736295160,-881.0,0.00027945,2]
[420931119,1776736295169,-1147.62,0.00027945,2]
[420931120,1776736295179,-871.29,0.00027945,2]
[420931121,1776736295188,-500.0,0.00027945,2]
[420931122,1776736295198,-500.0,0.00027945,2]